[Event "Titled Tuesday Blitz April 26 Late 2022"]
[White "Adewumi, Tanitoluwa"]
[Black "Andreikin, Dmitry"]
[WhiteFideId "30966396"]
[BlackFideId "4158814"]
[WhiteElo "2553"]
[BlackElo "2736"]
[Result "1/2-1/2"]
[Round "01"]
[TimeControl "180+1"]
[Date "2022.04.26"]
[WhiteClock "0:00:05"]
[BlackClock "0:00:45"]

1. e4 {[%clk 0:02:58]}  c5 {[%clk 0:02:59]} 2. Nf3 {[%clk 0:02:58]}  e6 {[%clk 0:03:00]} 3. d4 {[%clk 0:02:57]}  cxd4 {[%clk 0:03:00]} 4. Nxd4 {[%clk 0:02:58]}  Nc6 {[%clk 0:03:01]} 5. Nc3 {[%clk 0:02:59]}  Qc7 {[%clk 0:03:01]} 6. Be3 {[%clk 0:02:58]}  a6 {[%clk 0:03:01]} 7. Qf3 {[%clk 0:02:59]}  Nf6 {[%clk 0:02:59]} 8. O-O-O {[%clk 0:02:58]}  Rb8 {[%clk 0:03:00]} 9. Qg3 {[%clk 0:02:54]}  Qxg3 {[%clk 0:02:59]} 10. hxg3 {[%clk 0:02:54]}  Ng4 {[%clk 0:03:00]} 11. Nxc6 {[%clk 0:02:19]}  bxc6 {[%clk 0:03:00]} 12. Ba7 {[%clk 0:02:14]}  Rb7 {[%clk 0:03:01]} 13. Bd4 {[%clk 0:02:11]}  e5 {[%clk 0:02:51]} 14. Bxa6 {[%clk 0:02:10]}  exd4 {[%clk 0:02:49]} 15. Bxb7 {[%clk 0:02:10]}  Bxb7 {[%clk 0:02:48]} 16. Rxd4 {[%clk 0:02:10]}  Bc5 {[%clk 0:02:45]} 17. Rd2 {[%clk 0:01:56]}  Nxf2 {[%clk 0:02:39]} 18. Rh4 {[%clk 0:01:50]}  Be3 {[%clk 0:02:36]} 19. Rf4 {[%clk 0:01:44]}  Bxf4 {[%clk 0:02:26]} 20. gxf4 {[%clk 0:01:45]}  Ng4 {[%clk 0:02:27]} 21. e5 {[%clk 0:01:43]}  f5 {[%clk 0:02:15]} 22. Na4 {[%clk 0:01:30]}  Ke7 {[%clk 0:02:09]} 23. Nc5 {[%clk 0:01:28]}  Bc8 {[%clk 0:02:09]} 24. a4 {[%clk 0:01:26]}  g5 {[%clk 0:02:09]} 25. a5 {[%clk 0:01:15]}  gxf4 {[%clk 0:02:07]} 26. a6 {[%clk 0:01:14]}  Nxe5 {[%clk 0:02:02]} 27. a7 {[%clk 0:01:13]}  Ba6 {[%clk 0:02:01]} 28. Nxa6 {[%clk 0:00:53]}  Ra8 {[%clk 0:02:01]} 29. Re2 {[%clk 0:00:45]}  Kf6 {[%clk 0:02:01]} 30. Nc7 {[%clk 0:00:44]}  Rxa7 {[%clk 0:02:00]} 31. Ne8+ {[%clk 0:00:44]}  Ke6 {[%clk 0:01:59]} 32. Ng7+ {[%clk 0:00:42]}  Kd5 {[%clk 0:01:50]} 33. Nxf5 {[%clk 0:00:33]}  Nc4 {[%clk 0:01:50]} 34. Kb1 {[%clk 0:00:15]}  h5 {[%clk 0:01:45]} 35. b3 {[%clk 0:00:14]}  Nb6 {[%clk 0:01:36]} 36. Kb2 {[%clk 0:00:14]}  Rb7 {[%clk 0:01:33]} 37. Ne7+ {[%clk 0:00:10]}  Kc5 {[%clk 0:01:32]} 38. Nf5 {[%clk 0:00:11]}  d5 {[%clk 0:01:29]} 39. Kc3 {[%clk 0:00:11]}  Nd7 {[%clk 0:01:26]} 40. Nd4 {[%clk 0:00:11]}  Nf6 {[%clk 0:01:23]} 41. Ne6+ {[%clk 0:00:11]}  Kd6 {[%clk 0:01:23]} 42. Nxf4 {[%clk 0:00:11]}  Ne4+ {[%clk 0:01:23]} 43. Kb2 {[%clk 0:00:11]}  h4 {[%clk 0:01:23]} 44. Ng6 {[%clk 0:00:11]}  Rh7 {[%clk 0:01:20]} 45. Re3 {[%clk 0:00:11]}  Rh6 {[%clk 0:01:19]} 46. Nf4 {[%clk 0:00:10]}  Ng5 {[%clk 0:01:18]} 47. c4 {[%clk 0:00:08]}  Rf6 {[%clk 0:01:18]} 48. Nd3 {[%clk 0:00:06]}  d4 {[%clk 0:01:18]} 49. Re5 {[%clk 0:00:05]}  Ne6 {[%clk 0:01:18]} 50. c5+ {[%clk 0:00:05]}  Ke7 {[%clk 0:01:14]} 51. Re4 {[%clk 0:00:03]}  Kd7 {[%clk 0:01:13]} 52. Rxh4 {[%clk 0:00:03]}  Rf5 {[%clk 0:01:12]} 53. b4 {[%clk 0:00:03]}  Rg5 {[%clk 0:01:10]} 54. Rh7+ {[%clk 0:00:04]}  Kc8 {[%clk 0:01:10]} 55. Re7 {[%clk 0:00:03]}  Nc7 {[%clk 0:01:10]} 56. Ne5 {[%clk 0:00:03]}  Nd5 {[%clk 0:01:08]} 57. Re6 {[%clk 0:00:02]}  Nxb4 {[%clk 0:01:06]} 58. Nxc6 {[%clk 0:00:02]}  Nd3+ {[%clk 0:01:01]} 59. Kc2 {[%clk 0:00:02]}  Nxc5 {[%clk 0:01:01]} 60. Re5 {[%clk 0:00:02]}  Rxg2+ {[%clk 0:01:01]} 61. Kd1 {[%clk 0:00:03]}  Nd3 {[%clk 0:00:58]} 62. Rd5 {[%clk 0:00:03]}  Nb2+ {[%clk 0:00:58]} 63. Kc1 {[%clk 0:00:03]}  d3 {[%clk 0:00:58]} 64. Ne5 {[%clk 0:00:04]}  Kc7 {[%clk 0:00:46]} 65. Nxd3 {[%clk 0:00:04]}  Na4 {[%clk 0:00:47]} 66. Rd4 {[%clk 0:00:04]}  Nb6 {[%clk 0:00:45]} 67. Nf4 {[%clk 0:00:04]}  Rh2 {[%clk 0:00:45]} 68. Nd5+ {[%clk 0:00:04]}  Kc6 {[%clk 0:00:45]} 69. Nxb6 {[%clk 0:00:04]}  Kxb6 {[%clk 0:00:46]} 70. Rd2 {[%clk 0:00:05]}  Rxd2 {[%clk 0:00:45]} 71. Kxd2 {[%clk 0:00:05]} 1/2-1/2


[Site "https://www.chess.com"]

[Event "Titled Tuesday Blitz April 26 Late 2022"]
[White "Alekseenko, Kirill"]
[Black "Bellissimo, Joseph F."]
[WhiteFideId "4135539"]
[BlackFideId "2609843"]
[WhiteElo "2682"]
[BlackElo "2061"]
[Result "1-0"]
[Round "01"]
[TimeControl "180+1"]
[Date "2022.04.26"]
[WhiteClock "0:01:36"]
[BlackClock "0:00:35"]

1. e4 {[%clk 0:03:00]}  e6 {[%clk 0:02:56]} 2. d4 {[%clk 0:02:57]}  d5 {[%clk 0:02:53]} 3. Nd2 {[%clk 0:02:58]}  Nf6 {[%clk 0:02:52]} 4. e5 {[%clk 0:02:58]}  Nfd7 {[%clk 0:02:53]} 5. f4 {[%clk 0:02:58]}  c5 {[%clk 0:02:53]} 6. c3 {[%clk 0:02:59]}  Nc6 {[%clk 0:02:52]} 7. Ndf3 {[%clk 0:03:00]}  Qb6 {[%clk 0:02:49]} 8. h4 {[%clk 0:03:00]}  cxd4 {[%clk 0:02:49]} 9. cxd4 {[%clk 0:03:00]}  Bb4+ {[%clk 0:02:49]} 10. Kf2 {[%clk 0:03:00]}  f6 {[%clk 0:02:49]} 11. Kg3 {[%clk 0:03:00]}  O-O {[%clk 0:02:41]} 12. Bd3 {[%clk 0:03:00]}  f5 {[%clk 0:02:33]} 13. Ne2 {[%clk 0:02:59]}  a5 {[%clk 0:02:32]} 14. h5 {[%clk 0:02:57]}  h6 {[%clk 0:02:31]} 15. Kh2 {[%clk 0:02:43]}  Be7 {[%clk 0:02:25]} 16. a3 {[%clk 0:02:34]}  a4 {[%clk 0:02:25]} 17. Qg1 {[%clk 0:02:34]}  Na5 {[%clk 0:01:58]} 18. Rb1 {[%clk 0:02:34]}  Nb3 {[%clk 0:01:58]} 19. Be3 {[%clk 0:02:33]}  Qd8 {[%clk 0:01:43]} 20. g4 {[%clk 0:02:33]}  Nb6 {[%clk 0:01:23]} 21. gxf5 {[%clk 0:02:32]}  exf5 {[%clk 0:01:22]} 22. Qg6 {[%clk 0:02:31]}  Nc4 {[%clk 0:01:19]} 23. Rhg1 {[%clk 0:02:28]}  Rf7 {[%clk 0:01:19]} 24. Bxc4 {[%clk 0:02:20]}  dxc4 {[%clk 0:01:17]} 25. e6 {[%clk 0:02:21]}  Bxe6 {[%clk 0:01:05]} 26. Qxe6 {[%clk 0:02:22]}  Ra6 {[%clk 0:00:56]} 27. Qxc4 {[%clk 0:02:21]}  Rc6 {[%clk 0:00:54]} 28. Qxa4 {[%clk 0:02:16]}  Qd5 {[%clk 0:00:50]} 29. Ne5 {[%clk 0:02:11]}  Rc2 {[%clk 0:00:50]} 30. Rg2 {[%clk 0:01:44]}  Qe4 {[%clk 0:00:38]} 31. Qe8+ {[%clk 0:01:40]}  Rf8 {[%clk 0:00:38]} 32. Rxg7+ {[%clk 0:01:35]}  Kxg7 {[%clk 0:00:35]} 33. Qg6+ {[%clk 0:01:35]}  Kh8 {[%clk 0:00:35]} 34. Qxh6+ {[%clk 0:01:36]}  Kg8 {[%clk 0:00:35]} 35. Rg1+ {[%clk 0:01:36]} 1-0


[Site "https://www.chess.com"]

[Event "Titled Tuesday Blitz April 26 Late 2022"]
[White "Balint, Vilmos"]
[Black "Siddharth, Jagadeesh"]
[WhiteFideId "718050"]
[BlackFideId "5818320"]
[WhiteElo "2059"]
[BlackElo "2127"]
[Result "0-1"]
[Round "01"]
[TimeControl "180+1"]
[Date "2022.04.26"]
[WhiteClock "0:00:56"]
[BlackClock "0:00:24"]

1. d4 {[%clk 0:02:50]}  d5 {[%clk 0:02:58]} 2. c4 {[%clk 0:02:48]}  e6 {[%clk 0:02:59]} 3. cxd5 {[%clk 0:02:48]}  exd5 {[%clk 0:02:59]} 4. Bf4 {[%clk 0:02:48]}  c6 {[%clk 0:02:58]} 5. Nf3 {[%clk 0:02:48]}  Qb6 {[%clk 0:02:57]} 6. Qb3 {[%clk 0:02:47]}  Nf6 {[%clk 0:02:55]} 7. Qxb6 {[%clk 0:02:45]}  axb6 {[%clk 0:02:55]} 8. Bxb8 {[%clk 0:02:46]}  Rxb8 {[%clk 0:02:55]} 9. e3 {[%clk 0:02:47]}  Ra8 {[%clk 0:02:54]} 10. a3 {[%clk 0:02:46]}  b5 {[%clk 0:02:54]} 11. Bd3 {[%clk 0:02:37]}  Bd6 {[%clk 0:02:52]} 12. O-O {[%clk 0:02:37]}  O-O {[%clk 0:02:48]} 13. Nbd2 {[%clk 0:02:36]}  h6 {[%clk 0:02:46]} 14. Nb3 {[%clk 0:02:32]}  Re8 {[%clk 0:02:42]} 15. Nfd2 {[%clk 0:02:31]}  b6 {[%clk 0:02:28]} 16. h3 {[%clk 0:02:30]}  Bd7 {[%clk 0:02:25]} 17. Nf3 {[%clk 0:02:27]}  c5 {[%clk 0:02:23]} 18. Nbd2 {[%clk 0:02:22]}  c4 {[%clk 0:02:21]} 19. Bc2 {[%clk 0:02:21]}  b4 {[%clk 0:02:21]} 20. axb4 {[%clk 0:02:20]}  Bxb4 {[%clk 0:02:22]} 21. Rfd1 {[%clk 0:02:12]}  g5 {[%clk 0:02:07]} 22. Kf1 {[%clk 0:02:11]}  g4 {[%clk 0:02:06]} 23. hxg4 {[%clk 0:02:10]}  Bxg4 {[%clk 0:02:06]} 24. Ke2 {[%clk 0:02:06]}  Rxa1 {[%clk 0:01:50]} 25. Rxa1 {[%clk 0:02:06]}  Ne4 {[%clk 0:01:51]} 26. Bxe4 {[%clk 0:01:39]}  dxe4 {[%clk 0:01:50]} 27. Nxc4 {[%clk 0:01:39]}  exf3+ {[%clk 0:01:48]} 28. gxf3 {[%clk 0:01:40]}  Be6 {[%clk 0:01:46]} 29. Nxb6 {[%clk 0:01:39]}  Rb8 {[%clk 0:01:43]} 30. Ra6 {[%clk 0:01:29]}  Be7 {[%clk 0:01:36]} 31. d5 {[%clk 0:01:29]}  Bc5 {[%clk 0:01:26]} 32. Na4 {[%clk 0:01:23]}  Bxd5 {[%clk 0:01:18]} 33. Nxc5 {[%clk 0:01:23]}  Bc4+ {[%clk 0:01:18]} 34. Ke1 {[%clk 0:01:15]}  Bxa6 {[%clk 0:01:19]} 35. Nxa6 {[%clk 0:01:15]}  Rxb2 {[%clk 0:01:18]} 36. Nc5 {[%clk 0:01:15]}  h5 {[%clk 0:01:18]} 37. Nd3 {[%clk 0:01:16]}  Ra2 {[%clk 0:01:17]} 38. Kf1 {[%clk 0:01:16]}  Kg7 {[%clk 0:01:16]} 39. Kg2 {[%clk 0:01:16]}  Kh6 {[%clk 0:01:17]} 40. Nf4 {[%clk 0:01:17]}  h4 {[%clk 0:01:13]} 41. Nd3 {[%clk 0:01:15]}  Kg5 {[%clk 0:01:11]} 42. Ne5 {[%clk 0:01:15]}  f5 {[%clk 0:01:07]} 43. f4+ {[%clk 0:01:15]}  Kh5 {[%clk 0:01:07]} 44. Nf3 {[%clk 0:01:12]}  Ra8 {[%clk 0:01:04]} 45. Nd4 {[%clk 0:01:12]}  Rf8 {[%clk 0:01:00]} 46. Kh3 {[%clk 0:01:11]}  Rf7 {[%clk 0:00:56]} 47. Nf3 {[%clk 0:01:11]}  Kg6 {[%clk 0:00:53]} 48. Nxh4+ {[%clk 0:01:12]}  Kf6 {[%clk 0:00:54]} 49. Kg3 {[%clk 0:01:12]}  Rg7+ {[%clk 0:00:54]} 50. Kf3 {[%clk 0:01:12]}  Rh7 {[%clk 0:00:53]} 51. Ng2 {[%clk 0:01:12]}  Rh3+ {[%clk 0:00:54]} 52. Ke2 {[%clk 0:01:12]}  Ke6 {[%clk 0:00:54]} 53. Ne1 {[%clk 0:01:12]}  Kd5 {[%clk 0:00:53]} 54. Nd3 {[%clk 0:01:11]}  Rh8 {[%clk 0:00:52]} 55. Kf3 {[%clk 0:01:11]}  Ra8 {[%clk 0:00:52]} 56. Ne5 {[%clk 0:01:10]}  Ke6 {[%clk 0:00:52]} 57. Nc4 {[%clk 0:01:08]}  Rc8 {[%clk 0:00:52]} 58. Nd2 {[%clk 0:01:08]}  Rc2 {[%clk 0:00:52]} 59. Nf1 {[%clk 0:01:08]}  Kd5 {[%clk 0:00:50]} 60. Ng3 {[%clk 0:01:09]}  Ke6 {[%clk 0:00:50]} 61. Nh5 {[%clk 0:01:09]}  Kf7 {[%clk 0:00:50]} 62. Ng3 {[%clk 0:01:08]}  Kg6 {[%clk 0:00:50]} 63. Ne2 {[%clk 0:01:08]}  Ra2 {[%clk 0:00:49]} 64. Nd4 {[%clk 0:01:08]}  Ra5 {[%clk 0:00:49]} 65. Nc6 {[%clk 0:01:09]}  Rc5 {[%clk 0:00:49]} 66. Nb4 {[%clk 0:01:07]}  Kf6 {[%clk 0:00:49]} 67. Nd3 {[%clk 0:01:08]}  Rd5 {[%clk 0:00:49]} 68. Ne1 {[%clk 0:01:07]}  Rd2 {[%clk 0:00:48]} 69. Kg3 {[%clk 0:01:07]}  Ke6 {[%clk 0:00:45]} 70. Nf3 {[%clk 0:01:08]}  Kd5 {[%clk 0:00:45]} 71. Nd4 {[%clk 0:01:09]}  Ke4 {[%clk 0:00:41]} 72. Ne6 {[%clk 0:01:03]}  Rd1 {[%clk 0:00:30]} 73. Ng5+ {[%clk 0:01:02]}  Kd5 {[%clk 0:00:31]} 74. Nf3 {[%clk 0:01:02]}  Ke4 {[%clk 0:00:29]} 75. Ng5+ {[%clk 0:01:02]}  Kd3 {[%clk 0:00:30]} 76. Kf3 {[%clk 0:01:03]}  Kd2 {[%clk 0:00:27]} 77. Ne6 {[%clk 0:01:03]}  Ke1 {[%clk 0:00:26]} 78. Ng5 {[%clk 0:00:57]}  Rd2 {[%clk 0:00:26]} 79. Nh3 {[%clk 0:00:57]}  Kf1 {[%clk 0:00:26]} 80. e4 {[%clk 0:00:56]}  Rd3# {[%clk 0:00:24]} 0-1


[Site "https://www.chess.com"]

[Event "Titled Tuesday Blitz April 26 Late 2022"]
[White "Batsiashvili, Nino"]
[Black "Bluebaum, Matthias"]
[WhiteFideId "13602993"]
[BlackFideId "24651516"]
[WhiteElo "2192"]
[BlackElo "2550"]
[Result "0-1"]
[Round "01"]
[TimeControl "180+1"]
[Date "2022.04.26"]
[WhiteClock "0:00:36"]
[BlackClock "0:00:47"]

1. d4 {[%clk 0:02:59]}  Nf6 {[%clk 0:03:00]} 2. c4 {[%clk 0:03:00]}  e6 {[%clk 0:02:59]} 3. Nc3 {[%clk 0:03:00]}  Bb4 {[%clk 0:02:57]} 4. Bd2 {[%clk 0:02:59]}  c5 {[%clk 0:02:55]} 5. a3 {[%clk 0:02:52]}  Bxc3 {[%clk 0:02:53]} 6. Bxc3 {[%clk 0:02:52]}  Ne4 {[%clk 0:02:53]} 7. Nf3 {[%clk 0:02:42]}  Nxc3 {[%clk 0:02:49]} 8. bxc3 {[%clk 0:02:43]}  b6 {[%clk 0:02:43]} 9. e3 {[%clk 0:02:35]}  Bb7 {[%clk 0:02:42]} 10. Bd3 {[%clk 0:02:35]}  O-O {[%clk 0:02:42]} 11. O-O {[%clk 0:02:35]}  Nc6 {[%clk 0:02:42]} 12. Nd2 {[%clk 0:02:33]}  Na5 {[%clk 0:02:39]} 13. Qh5 {[%clk 0:02:31]}  f5 {[%clk 0:02:39]} 14. d5 {[%clk 0:02:27]}  g6 {[%clk 0:02:38]} 15. Qf3 {[%clk 0:02:23]}  Qf6 {[%clk 0:02:36]} 16. Rac1 {[%clk 0:02:22]}  Rae8 {[%clk 0:02:33]} 17. e4 {[%clk 0:02:20]}  Qg5 {[%clk 0:02:24]} 18. Qe3 {[%clk 0:02:02]}  Qxe3 {[%clk 0:02:19]} 19. fxe3 {[%clk 0:02:03]}  exd5 {[%clk 0:02:00]} 20. exf5 {[%clk 0:01:57]}  Rxe3 {[%clk 0:01:51]} 21. fxg6 {[%clk 0:01:47]}  Rxf1+ {[%clk 0:01:51]} 22. Bxf1 {[%clk 0:01:48]}  hxg6 {[%clk 0:01:50]} 23. cxd5 {[%clk 0:01:40]}  Bxd5 {[%clk 0:01:48]} 24. Kf2 {[%clk 0:01:38]}  Re7 {[%clk 0:01:45]} 25. Bd3 {[%clk 0:01:37]}  Kg7 {[%clk 0:01:45]} 26. h4 {[%clk 0:01:36]}  Nc6 {[%clk 0:01:45]} 27. Bc4 {[%clk 0:01:21]}  Ne5 {[%clk 0:01:32]} 28. Be2 {[%clk 0:01:17]}  Bc6 {[%clk 0:01:13]} 29. Rh1 {[%clk 0:01:16]}  Rf7+ {[%clk 0:01:09]} 30. Kg3 {[%clk 0:01:15]}  Kh6 {[%clk 0:01:04]} 31. Nf1 {[%clk 0:01:03]}  d5 {[%clk 0:01:01]} 32. Ne3 {[%clk 0:01:02]}  d4 {[%clk 0:01:01]} 33. cxd4 {[%clk 0:01:03]}  cxd4 {[%clk 0:01:02]} 34. Nc4 {[%clk 0:00:58]}  Nxc4 {[%clk 0:01:00]} 35. Bxc4 {[%clk 0:00:59]}  Re7 {[%clk 0:00:59]} 36. Rd1 {[%clk 0:00:57]}  Re3+ {[%clk 0:00:49]} 37. Kh2 {[%clk 0:00:51]}  Rxa3 {[%clk 0:00:49]} 38. Rxd4 {[%clk 0:00:50]}  Ra4 {[%clk 0:00:49]} 39. Kg3 {[%clk 0:00:38]}  b5 {[%clk 0:00:48]} 40. Bxb5 {[%clk 0:00:38]}  Rxd4 {[%clk 0:00:46]} 41. Bxc6 {[%clk 0:00:39]}  a5 {[%clk 0:00:47]} 42. Kf3 {[%clk 0:00:36]}  a4 {[%clk 0:00:47]} 43. Ke3 {[%clk 0:00:36]}  a3 {[%clk 0:00:47]} 44. Kxd4 {[%clk 0:00:36]}  a2 {[%clk 0:00:47]} 0-1


[Site "https://www.chess.com"]

[Event "Titled Tuesday Blitz April 26 Late 2022"]
[White "Bordi, Kevin"]
[Black "Melaugh, Shane"]
[WhiteFideId "621862"]
[BlackFideId "2509580"]
[WhiteElo "2760"]
[BlackElo "1972"]
[Result "1-0"]
[Round "01"]
[TimeControl "180+1"]
[Date "2022.04.26"]
[WhiteClock "0:00:51"]
[BlackClock "0:00:11"]

1. e4 {[%clk 0:02:59]}  e6 {[%clk 0:02:58]} 2. c4 {[%clk 0:02:56]}  c5 {[%clk 0:02:54]} 3. Nf3 {[%clk 0:02:56]}  Nc6 {[%clk 0:02:52]} 4. Nc3 {[%clk 0:02:55]}  e5 {[%clk 0:02:44]} 5. g3 {[%clk 0:02:49]}  d6 {[%clk 0:02:40]} 6. Bg2 {[%clk 0:02:49]}  Be7 {[%clk 0:02:37]} 7. O-O {[%clk 0:02:49]}  Be6 {[%clk 0:02:30]} 8. Nd5 {[%clk 0:02:46]}  h5 {[%clk 0:02:28]} 9. b4 {[%clk 0:02:35]}  Bxd5 {[%clk 0:02:25]} 10. cxd5 {[%clk 0:02:33]}  Nxb4 {[%clk 0:02:25]} 11. Rb1 {[%clk 0:02:32]}  Qd7 {[%clk 0:02:10]} 12. d4 {[%clk 0:02:25]}  exd4 {[%clk 0:02:01]} 13. Nxd4 {[%clk 0:02:23]}  Nxa2 {[%clk 0:02:02]} 14. Nf5 {[%clk 0:02:19]}  g6 {[%clk 0:01:56]} 15. Bb2 {[%clk 0:02:15]}  Bf6 {[%clk 0:01:54]} 16. Nxd6+ {[%clk 0:02:05]}  Qxd6 {[%clk 0:01:51]} 17. e5 {[%clk 0:02:04]}  Qd7 {[%clk 0:01:30]} 18. exf6 {[%clk 0:02:01]}  O-O-O {[%clk 0:01:18]} 19. d6 {[%clk 0:01:57]}  Nb4 {[%clk 0:01:11]} 20. Ba3 {[%clk 0:01:45]}  Qxd6 {[%clk 0:01:09]} 21. Qf3 {[%clk 0:01:39]}  Nc6 {[%clk 0:01:00]} 22. Rfc1 {[%clk 0:01:13]}  Qxf6 {[%clk 0:00:56]} 23. Qb3 {[%clk 0:01:12]}  Rd7 {[%clk 0:00:42]} 24. Rxc5 {[%clk 0:00:59]}  Ne7 {[%clk 0:00:42]} 25. Bb2 {[%clk 0:00:56]}  Qd6 {[%clk 0:00:27]} 26. Rxc6+ {[%clk 0:00:55]}  Nxc6 {[%clk 0:00:27]} 27. Bxh8 {[%clk 0:00:55]}  Qd3 {[%clk 0:00:16]} 28. Bxc6 {[%clk 0:00:51]}  Qxb3 {[%clk 0:00:11]} 29. Bxd7+ {[%clk 0:00:51]} 1-0


[Site "https://www.chess.com"]

[Event "Titled Tuesday Blitz April 26 Late 2022"]
[White "Chyngyz, Sultai"]
[Black "Hnydiuk, Aleksander"]
[WhiteFideId "13803158"]
[BlackFideId "1109057"]
[WhiteElo "1365"]
[BlackElo "2374"]
[Result "0-1"]
[Round "01"]
[TimeControl "180+1"]
[Date "2022.04.26"]
[WhiteClock "0:01:20"]
[BlackClock "0:01:11"]

1. e4 {[%clk 0:02:55]}  Nf6 {[%clk 0:02:59]} 2. Nc3 {[%clk 0:02:50]}  e5 {[%clk 0:02:59]} 3. Nf3 {[%clk 0:02:49]}  Nc6 {[%clk 0:02:59]} 4. Bc4 {[%clk 0:02:49]}  Nxe4 {[%clk 0:02:58]} 5. Nxe4 {[%clk 0:02:47]}  d5 {[%clk 0:02:58]} 6. Bxd5 {[%clk 0:02:46]}  Qxd5 {[%clk 0:02:58]} 7. Nc3 {[%clk 0:02:46]}  Qd8 {[%clk 0:02:55]} 8. d3 {[%clk 0:02:46]}  Bc5 {[%clk 0:02:52]} 9. O-O {[%clk 0:02:46]}  O-O {[%clk 0:02:48]} 10. Be3 {[%clk 0:02:42]}  Bb6 {[%clk 0:02:41]} 11. Bxb6 {[%clk 0:02:40]}  axb6 {[%clk 0:02:42]} 12. Re1 {[%clk 0:02:38]}  Bg4 {[%clk 0:02:40]} 13. h3 {[%clk 0:02:38]}  Bh5 {[%clk 0:02:39]} 14. g4 {[%clk 0:02:27]}  Bg6 {[%clk 0:02:38]} 15. Nxe5 {[%clk 0:02:25]}  Nxe5 {[%clk 0:02:32]} 16. Rxe5 {[%clk 0:02:26]}  f5 {[%clk 0:02:28]} 17. gxf5 {[%clk 0:02:12]}  Bxf5 {[%clk 0:02:23]} 18. Qh5 {[%clk 0:02:07]}  Qf6 {[%clk 0:02:05]} 19. Rae1 {[%clk 0:02:06]}  Bg6 {[%clk 0:02:00]} 20. Qe2 {[%clk 0:02:01]}  Qh4 {[%clk 0:01:49]} 21. Kg2 {[%clk 0:01:51]}  Bf5 {[%clk 0:01:48]} 22. Re3 {[%clk 0:01:43]}  Rf6 {[%clk 0:01:28]} 23. Re8+ {[%clk 0:01:34]}  Rxe8 {[%clk 0:01:27]} 24. Qxe8+ {[%clk 0:01:34]}  Rf8 {[%clk 0:01:27]} 25. Qe3 {[%clk 0:01:33]}  Bxh3+ {[%clk 0:01:25]} 26. Kh2 {[%clk 0:01:21]}  Rxf2+ {[%clk 0:01:22]} 27. Kg1 {[%clk 0:01:20]}  Qg4+ {[%clk 0:01:11]} 0-1


[Site "https://www.chess.com"]

[Event "Titled Tuesday Blitz April 26 Late 2022"]
[White "Czopor, Maciej"]
[Black "Oro, Luis"]
[WhiteFideId "21805431"]
[BlackFideId "104094"]
[WhiteElo "1999"]
[BlackElo "2390"]
[Result "1-0"]
[Round "01"]
[TimeControl "180+1"]
[Date "2022.04.26"]
[WhiteClock "0:00:03"]
[BlackClock "0:00:02"]

1. d4 {[%clk 0:02:54]}  Nf6 {[%clk 0:02:58]} 2. c4 {[%clk 0:02:55]}  e6 {[%clk 0:02:57]} 3. g4 {[%clk 0:02:53]}  d5 {[%clk 0:02:23]} 4. g5 {[%clk 0:02:52]}  Ne4 {[%clk 0:02:23]} 5. Bg2 {[%clk 0:02:52]}  Bb4+ {[%clk 0:02:09]} 6. Kf1 {[%clk 0:02:52]}  Nc6 {[%clk 0:02:04]} 7. h4 {[%clk 0:02:23]}  f6 {[%clk 0:01:55]} 8. Qb3 {[%clk 0:02:03]}  f5 {[%clk 0:01:21]} 9. Nh3 {[%clk 0:01:49]}  a5 {[%clk 0:01:10]} 10. e3 {[%clk 0:01:38]}  b6 {[%clk 0:01:04]} 11. Nf4 {[%clk 0:01:37]}  dxc4 {[%clk 0:01:00]} 12. Qc2 {[%clk 0:01:34]}  O-O {[%clk 0:00:55]} 13. Nc3 {[%clk 0:01:31]}  Bxc3 {[%clk 0:00:41]} 14. bxc3 {[%clk 0:01:31]}  e5 {[%clk 0:00:37]} 15. dxe5 {[%clk 0:01:09]}  Nxe5 {[%clk 0:00:36]} 16. Ba3 {[%clk 0:01:09]}  c5 {[%clk 0:00:24]} 17. Rd1 {[%clk 0:00:58]}  Qe8 {[%clk 0:00:19]} 18. Nd5 {[%clk 0:00:50]}  Qb5 {[%clk 0:00:04]} 19. Nc7 {[%clk 0:00:46]}  Qc6 {[%clk 0:00:03]} 20. Nxa8 {[%clk 0:00:47]}  Qxa8 {[%clk 0:00:04]} 21. Kg1 {[%clk 0:00:17]}  Bb7 {[%clk 0:00:04]} 22. Qb2 {[%clk 0:00:07]}  Nd3 {[%clk 0:00:04]} 23. Qxb6 {[%clk 0:00:06]}  Ndxf2 {[%clk 0:00:03]} 24. Rd7 {[%clk 0:00:05]}  Nxh1 {[%clk 0:00:03]} 25. Qxb7 {[%clk 0:00:04]}  Qxb7 {[%clk 0:00:03]} 26. Rxb7 {[%clk 0:00:05]}  Nhg3 {[%clk 0:00:03]} 27. Rb5 {[%clk 0:00:02]}  Ne2+ {[%clk 0:00:04]} 28. Kf1 {[%clk 0:00:02]}  N2xc3 {[%clk 0:00:04]} 29. Rxa5 {[%clk 0:00:02]}  Nd2+ {[%clk 0:00:05]} 30. Ke1 {[%clk 0:00:02]}  Ndb1 {[%clk 0:00:05]} 31. Bxc5 {[%clk 0:00:02]}  Rb8 {[%clk 0:00:05]} 32. Bd4 {[%clk 0:00:02]}  Ne4 {[%clk 0:00:05]} 33. Bxe4 {[%clk 0:00:03]}  fxe4 {[%clk 0:00:05]} 34. Ra7 {[%clk 0:00:03]}  g6 {[%clk 0:00:03]} 35. Rg7+ {[%clk 0:00:03]}  Kf8 {[%clk 0:00:04]} 36. Rxh7 {[%clk 0:00:03]}  Rb5 {[%clk 0:00:02]} 37. Rc7 {[%clk 0:00:03]} 1-0


[Site "https://www.chess.com"]

[Event "Titled Tuesday Blitz April 26 Late 2022"]
[White "Demchenko, Anton"]
[Black "Hirneise, Jens"]
[WhiteFideId "4160258"]
[BlackFideId "24614734"]
[WhiteElo "2539"]
[BlackElo "2359"]
[Result "1-0"]
[Round "01"]
[TimeControl "180+1"]
[Date "2022.04.26"]
[WhiteClock "0:00:31"]
[BlackClock "0:00:53"]

1. e4 {[%clk 0:03:00]}  c6 {[%clk 0:02:56]} 2. d4 {[%clk 0:02:58]}  d5 {[%clk 0:02:56]} 3. e5 {[%clk 0:02:59]}  Bf5 {[%clk 0:02:51]} 4. Bd3 {[%clk 0:02:58]}  Bxd3 {[%clk 0:02:50]} 5. Qxd3 {[%clk 0:02:59]}  Qa5+ {[%clk 0:02:41]} 6. c3 {[%clk 0:03:00]}  Qa6 {[%clk 0:02:37]} 7. Qd1 {[%clk 0:03:00]}  e6 {[%clk 0:02:36]} 8. Ne2 {[%clk 0:03:00]}  c5 {[%clk 0:02:35]} 9. O-O {[%clk 0:03:01]}  Nc6 {[%clk 0:02:34]} 10. Be3 {[%clk 0:03:01]}  cxd4 {[%clk 0:02:25]} 11. cxd4 {[%clk 0:03:01]}  Nge7 {[%clk 0:02:24]} 12. Ng3 {[%clk 0:03:01]}  g6 {[%clk 0:02:13]} 13. Nd2 {[%clk 0:02:59]}  Bg7 {[%clk 0:02:13]} 14. Nf3 {[%clk 0:02:54]}  O-O {[%clk 0:02:08]} 15. h4 {[%clk 0:02:48]}  Rac8 {[%clk 0:02:07]} 16. h5 {[%clk 0:02:47]}  Nb4 {[%clk 0:02:06]} 17. h6 {[%clk 0:02:46]}  Bh8 {[%clk 0:02:06]} 18. Bg5 {[%clk 0:02:43]}  Rfe8 {[%clk 0:02:04]} 19. a3 {[%clk 0:02:42]}  Nbc6 {[%clk 0:01:57]} 20. b4 {[%clk 0:02:37]}  Qb5 {[%clk 0:01:49]} 21. Rb1 {[%clk 0:02:36]}  Nb8 {[%clk 0:01:42]} 22. Nh2 {[%clk 0:02:26]}  Nd7 {[%clk 0:01:39]} 23. Ng4 {[%clk 0:02:25]}  Nf5 {[%clk 0:01:37]} 24. Nxf5 {[%clk 0:02:14]}  exf5 {[%clk 0:01:37]} 25. a4 {[%clk 0:02:06]}  Qc4 {[%clk 0:01:29]} 26. Ne3 {[%clk 0:02:05]}  Qa2 {[%clk 0:01:26]} 27. Ra1 {[%clk 0:02:05]}  Qb2 {[%clk 0:01:21]} 28. Nxd5 {[%clk 0:02:06]}  f6 {[%clk 0:01:12]} 29. exf6 {[%clk 0:02:05]}  Kf7 {[%clk 0:01:11]} 30. Qf3 {[%clk 0:01:37]}  Qe2 {[%clk 0:01:02]} 31. Qb3 {[%clk 0:01:01]}  Qc4 {[%clk 0:01:00]} 32. Qf3 {[%clk 0:00:57]}  Bxf6 {[%clk 0:00:56]} 33. Rac1 {[%clk 0:00:35]}  Qa2 {[%clk 0:00:52]} 34. Rxc8 {[%clk 0:00:31]}  Rxc8 {[%clk 0:00:53]} 35. Nxf6 {[%clk 0:00:31]} 1-0


[Site "https://www.chess.com"]